Cogmind - Beta 14 @@@ ROGUE MODE // 2024.10.18 @ 20:55:45 Player: Sandwich Result: Destroyed by Y-54 Guardian with Gatling Laser Performance ------------- Evolutions (4) 2000 Regions Visited (9) 1800 Robots Destroyed (110) 550 Value Destroyed (4381) 4381 Prototype IDs (9) 180 Alien Tech Used (0) 0 Bonus (2178) 2178 TOTAL SCORE: 11089 Bonus ------- High Alert Combat Kills 1190 Follower Combat Kills 1636 Network Hubs Disabled 600 Built Enhanced Grunts 300 Met R17 at Cetus 500 Friendly Fire -2048 Cogmind --------- Core Integrity 0/850 Matter 71/300 Energy 98/100 System Corruption 31% Temperature Cool (6) Movement Core (50) Location -6/Hub_04(d) Parts ------- > --- POWER (1) -------- (None) > --- PROPULSION (4) --- (None) > --- UTILITY (6) ------ (None) > --- WEAPON (4) ------- (None) > --- INVENTORY (5) ---- Target Analyzer Experimental Thermal Shield Improved Proton Missile Launcher Rocket Array Peak State ------------ > --- POWER ------------ Cold Fusion Reactor > --- PROPULSION ------- Centrium Heavy Treads Centrium Heavy Treads > --- UTILITY ---------- Medium Storage Unit Advanced Sensor Array Advanced Signal Interpreter Advanced Targeting Computer Centrium Medium Armor Plating Experimental Thermal Shield > --- WEAPON ----------- Neutron Cannon Gauss Rifle Gauss Rifle Flak Gun > --- INVENTORY -------- Flexi-carbon Leg Flexi-carbon Leg Improved Heat Sink Improved Terrain Scanner Advanced Terrain Scan Processor Kinecellerator Improved Medium Armor Plating Rocket Array Rocket Array Rocket Array [Rating: 97] Favorites ----------- Power Neutrino Core Engine Deuterium Engine Power Core Neutrino Core Reactor Cold Fusion Reactor Propulsion Improved Carbon-fiber Leg Treads Centrium Heavy Treads Leg Improved Carbon-fiber Leg Wheel Compact Wheel Utility Medium Storage Unit Device Improved Heat Sink Storage Medium Storage Unit Processor Advanced Targeting Computer Hackware Hacking Suite Protection Scrap Shield Weapon Gauss Rifle Energy Gun Medium Laser Energy Cannon Neutron Cannon Ballistic Gun Gauss Rifle Ballistic Cannon Bore Cannon Launcher Rocket Array Slashing Weapon Axe Build | -11 -10 -10 -8 -7 -6 -6 -6 -6 -6 ------- Run | Yrd Mat Sub Mat Fac Fac Ext Cet Arc Hub Slots Evolved 8 | . . . 4 2 2 . . . . Power . | . . . . . . . . . . Propulsion 2 | . . . 1 1 . . . . . Utility 4 | . . . 2 1 1 . . . . Weapon 2 | . . . 1 . 1 . . . . Parts Attached 130 | 7 1 9 10 30 8 11 13 1 40 Power 8 | 1 1 1 . 1 . 3 . . 1 Engine 5 | 1 1 . . 1 . 1 . . 1 Core 2 | . . 1 . . . 1 . . . Reactor 1 | . . . . . . 1 . . . Propulsion 22 | 2 . 3 1 7 3 1 3 . 2 Treads 4 | 1 . 1 . . . . 2 . . Leg 16 | . . 2 1 7 3 1 1 . 1 Wheel 2 | 1 . . . . . . . . 1 Hover . | . . . . . . . . . . Flight . | . . . . . . . . . . Utility 35 | 2 . 2 6 7 2 2 2 1 11 Device 16 | 1 . 1 1 3 2 1 1 . 6 Storage 3 | 1 . . 1 . . . . . 1 Processor 2 | . . . . 1 . . . . 1 Hackware 1 | . . . . 1 . . . . . Protection 13 | . . 1 4 2 . 1 1 1 3 Artifact . | . . . . . . . . . . Weapon 65 | 2 . 3 3 15 3 5 8 . 26 Energy Gun 5 | 1 . 1 1 1 . . . . 1 Energy Cannon 10 | . . . 1 2 . . . . 7 Ballistic Gun 24 | 1 . 1 1 6 3 3 4 . 5 Ballistic Cannon 2 | . . 1 . 1 . . . . . Launcher 23 | . . . . 5 . 2 4 . 12 Special Weapon . | . . . . . . . . . . Impact Weapon . | . . . . . . . . . . Slashing Weapon 1 | . . . . . . . . . 1 Piercing Weapon . | . . . . . . . . . . Special Melee Weapon . | . . . . . . . . . . Unidentified Prototypes 9 | . . . 1 2 . 1 2 . 3 Corrupted Parts 1 | . . . . . . . . . 1 System Corruption 12 | . . . . . . . . . 12 Parts Lost 29 | . . 4 2 3 . 1 2 . 17 Power 2 | . . 1 . . . . . . 1 Propulsion 5 | . . 1 . 1 . . 1 . 2 Utility 8 | . . 1 1 1 . 1 . . 4 Weapon 14 | . . 1 1 1 . . 1 . 10 Highest Loss Streak 5 | . . 3 2 2 . 1 2 . 5 To Critical Strikes 1 | . . . . . . . 1 . . Average Slot Usage (%) 88 | . 100 92 78 93 100 95 88 82 77 Engine 2 | . 14 2 . 2 6 1 . . 1 Core 4 | . . 11 9 4 . 4 . . . Reactor 1 | . . . . . . . 6 6 4 Treads 4 | . 14 8 . . . . 3 13 10 Leg 15 | . . 16 18 28 26 26 18 . . Wheel 1 | . 14 2 . . . . . . . Device 9 | . 14 7 2 8 20 13 6 6 11 Storage 6 | . 14 7 6 7 6 6 6 6 5 Processor 5 | . . . . 7 6 6 6 6 12 Hackware 2 | . . . . 2 6 6 6 6 . Protection 6 | . . 6 18 6 . 1 6 8 6 Energy Gun 5 | . 14 16 8 3 . . . . 1 Energy Cannon 2 | . . . . 3 . . . . 6 Ballistic Gun 13 | . 14 . 6 10 26 25 25 26 11 Ballistic Cannon 3 | . . 11 9 2 . . . . . Peak Build Rating 97 | 7 7 27 36 48 58 64 79 83 97 Average Rating 47 | 5 7 21 32 40 56 60 63 80 77 On Entrance 40 | . 7 7 25 35 48 58 64 79 83 Naked Turns 69 | . . . . . . . . . 69 Heaviest Build 67 | 13 13 43 62 60 38 64 59 51 67 Greatest Support 160 | 20 16 35 45 79 76 76 160 160 160 Greatest Overweight (x) 4 | . . 1 1 1 . . . . 4 Average Overweight (x) . | . . . 1 . . . . . . Largest Inventory Capacity 10 | 8 8 8 10 10 10 10 10 10 10 Average Capacity 9 | 7 8 6 8 10 10 10 10 10 9 Most Carried 10 | 4 6 8 10 10 10 10 10 10 10 Average Carried 8 | 2 5 6 7 9 9 9 9 10 8 Final Capacity 10 | 8 8 5 10 10 10 10 10 10 5 Final Carried 10 | 4 6 5 8 10 10 10 10 10 4 Class Distribution -------------------- 28% | Scavenger-Gunner 18% | Scavenger-Tank 15% | Scavenger-Mutant 12% | Mutant 11% | Scavenger-Skirmisher 7% | Gunner 4% | Commander-Gunner Dominant Class ---------------- Mutant | -10/Materials Scavenger-Mutant | -10/Subcaves Scavenger-Tank | -8/Materials Scavenger-Gunner | -7/Factory Scavenger-Gunner | -6/Factory Scavenger-Gunner | -6/Extension Scavenger-Gunner | -6/Cetus Scavenger-Gunner | -6/Archives Scavenger-Skirmisher | -6/Hub_04(d) Resources | -11 -10 -10 -8 -7 -6 -6 -6 -6 -6 ----------- Run | Yrd Mat Sub Mat Fac Fac Ext Cet Arc Hub Matter Collected 3411 | 258 61 326 195 659 200 751 279 27 655 Remotely . | . . . . . . . . . . Salvage Created 3610 | 49 61 172 178 512 204 1043 69 . 1322 Parts 173 | 4 7 8 9 29 11 44 4 . 57 Haulers Intercepted 1 | . . . . . . . . . 1 Recyclers Shooed 1 | 1 . . . . . . . . . Parts Field Recycled . | . . . . . . . . . . Retrieved Matter . | . . . . . . . . . . Parts Self-Destructed 11 | . . 11 . . . . . . . Prevented . | . . . . . . . . . . Kills | -11 -10 -10 -8 -7 -6 -6 -6 -6 -6 ------- Run | Yrd Mat Sub Mat Fac Fac Ext Cet Arc Hub Combat Hostiles Destroyed 72 | . 2 5 4 18 3 17 1 . 22 Melee 1 | . . . . . . . . . 1 Guns 28 | . 2 4 1 5 3 12 1 . . Cannons 12 | . . 1 3 3 . . . . 5 AOE 29 | . . . . 10 . 5 . . 14 Classes Destroyed 18 | 1 2 1 4 1 . 4 . . 5 Worker 16 | . . . 1 1 . 2 . . 12 Builder 4 | . . . . . . 1 . . 3 Tunneler 3 | 2 . . . 1 . . . . . Hauler 1 | . . . . . . . . . 1 Recycler 3 | . . . . . . 2 . . 1 Operator 2 | . . . . . . 1 . . 1 Watcher 4 | . 1 . . . 1 . 1 . 1 Swarmer 16 | . 2 1 . 5 . 5 . . 3 Saboteur 1 | . . . . . . . . . 1 Grunt 26 | . . . 1 11 1 8 . . 5 Brawler 1 | . . . . . . . . . 1 Duelist 2 | . . . . . . 1 . . 1 Protector 3 | . . . . . . . . . 3 Sentry 7 | . . . 2 . . 3 . . 2 Hunter 3 | . . . 1 . 2 . . . . Programmer 3 | . . . . 2 . . . . 1 Behemoth 1 | . . . . . . . . . 1 Cetus Guard 1 | . . . . . . . 1 . . Enhanced Grunt 3 | . . . . . . . . . 3 Lightning 4 | . . . . . . . . . 4 Subdweller 4 | . . 4 . . . . . . . Savage 2 | . . . . . . . . . 2 Best Kill Streak 11 | 2 2 2 2 4 2 11 1 . 9 Combat Bots Only 8 | . 2 2 1 3 2 8 1 . 7 Max Kills in Single Turn 7 | 1 1 1 1 3 1 7 1 . 7 Gunslinging . | . . . . . . . . . . Exploded 5 | . . . . 3 . 5 . . 4 Melee 1 | . . . . . . . . . 1 Uniques/NPCs Destroyed . | . . . . . . . . . . Combat | -11 -10 -10 -8 -7 -6 -6 -6 -6 -6 -------- Run | Yrd Mat Sub Mat Fac Fac Ext Cet Arc Hub Hostile Shots Fired 615 | . 12 42 41 81 9 134 25 7 264 Missed 203 | . 1 10 6 28 2 59 6 4 87 Damage Taken 8536 | . 89 632 506 1380 195 768 427 71 4468 Core 1113 | . . 56 41 163 19 107 . . 727 Absorbed by Shields 370 | . . . . . . 219 151 . . Reduced by Siege Mode 99 | . . . . . . . . . 99 Redirected to Shielding 73 | . . . 19 54 . . . . . Ignored by Resistances 4 | . . . 4 . . . . . . Core Remaining (%) 86 | 100 . 77 92 76 . . . . . Volleys Fired 227 | 4 10 41 16 29 7 38 6 1 75 Largest 4 | 2 2 2 3 3 4 4 4 4 4 Hottest 209 | 70 70 107 142 146 107 112 135 102 209 Shots Fired 522 | 8 19 64 46 70 28 134 23 4 126 Gun 337 | 8 19 29 24 44 28 128 20 4 33 Cannon 145 | . . 35 22 20 . . . . 68 Launcher 40 | . . . . 6 . 6 3 . 25 Special . | . . . . . . . . . . Kinetic 330 | 4 10 37 30 47 28 128 20 4 22 Thermal 148 | 4 9 23 16 17 . . . . 79 Explosive 40 | . . . . 6 . 6 3 . 25 Electromagnetic 4 | . . 4 . . . . . . . Robot Hit Streak 33 | 3 3 14 5 11 4 13 10 3 33 Robot Miss Streak 6 | 2 3 4 4 4 5 5 4 2 6 Penetration Max 1 | . . . 1 . 1 1 . . . Secondary Targets 2 | . . . . . 1 1 . . . Max Gunslinging Chain 1 | . . . . . 1 1 . . . Shots Hit Robots 311 | 4 8 27 25 46 12 98 17 3 71 Core Hits 383 | 3 4 9 9 42 7 79 60 1 169 Critical Kills 4 | 1 . . 2 . . . . . 1 Critical Parts Destroyed 3 | . . . 2 . 1 . . . . Critical Strikes 15 | 1 . 5 5 . 1 1 . . 2 Burn 4 | . . 2 1 . . . . . 1 Meltdown 1 | . . . . . . . . . 1 Destroy 10 | 1 . 3 4 . 1 1 . . . Melee Attacks . | . . . . . . . . . . Impact . | . . . . . . . . . . Slashing . | . . . . . . . . . . Piercing . | . . . . . . . . . . Sneak Attacks . | . . . . . . . . . . Combat Hostiles . | . . . . . . . . . . Follow-up Attacks . | . . . . . . . . . . Damage Inflicted 14028 | 49 95 433 539 2111 241 2699 911 50 6900 Guns 4239 | 49 95 285 281 553 241 2041 293 50 351 Cannons 1942 | . . 148 258 417 . . . . 1119 Explosions 7812 | . . . . 1141 . 658 618 . 5395 Melee . | . . . . . . . . . . Ramming 35 | . . . . . . . . . 35 Kinetic 4135 | 24 44 173 386 658 241 2041 293 50 225 Thermal 2044 | 25 51 198 153 312 . . . . 1305 Explosive 6668 | . . . . 1141 . 658 618 . 4251 Electromagnetic 1146 | . . 62 . . . . . . 1084 Impact . | . . . . . . . . . . Slashing . | . . . . . . . . . . Piercing . | . . . . . . . . . . Highest Corruption 31 | . . . . . . . . . 31 Average Corruption 25 | . . . . . . . . . 25 Corruption Purged . | . . . . . . . . . . Corruption Blocked . | . . . . . . . . . . Effects 51 | . . . . . . . . . 51 Message Errors 9 | . . . . . . . . . 9 Matter Fused 7 | . . . . . . . . . 7 Heat Flow Errors 10 | . . . . . . . . . 10 Energy Discharges 5 | . . . . . . . . . 5 Parts Rejected 1 | . . . . . . . . . 1 Data Loss (minor) 4 | . . . . . . . . . 4 Data Loss (major) 1 | . . . . . . . . . 1 Misfires 1 | . . . . . . . . . 1 Alerts 4 | . . . . . . . . . 4 Misdirections 4 | . . . . . . . . . 4 Weapon Failures 5 | . . . . . . . . . 5 Overload Shots . | . . . . . . . . . . Overflow Damage 212 | . . . . 19 . . . . 193 Projectiles 12 | . . . . 12 . . . . . Explosions 200 | . . . . 7 . . . . 193 Melee . | . . . . . . . . . . Knockbacks 5 | . . 2 . 3 . . . . . Impact . | . . . . . . . . . . Kinetic 5 | . . 2 . 3 . . . . . Secondary . | . . . . . . . . . . Self-Inflicted Damage 799 | . . . . 18 . 112 . . 669 Shots 20 | . . . . 1 . 5 . . 14 Rammed 11 | . . . . . . . . . 11 Targets Rammed 11 | . . . . . . . . . 11 Kicked . | . . . . . . . . . . Crushed . | . . . . . . . . . . Highest Temperature 373 | 27 27 12 373 99 17 32 . . 354 Average Temperature 76 | 12 10 5 128 39 10 11 . . 101 Received Heat Transfer 1418 | . . 99 198 171 54 236 21 . 639 Effects 3 | . . . . . . . . . 3 Interference 3 | . . . . . . . . . 3 Siege Activations 3 | . . . . . . . . . 3 Total Turns 86 | . . . . . . . . . 86 Longest Duration 37 | . . . . . . . . . 37 Robots Corrupted 3 | . . . . . . . . . 3 Combat Hostiles . | . . . . . . . . . . Parts Fried 11 | . . . . . . . . . 11 Impact Corruptions . | . . . . . . . . . . Robots Melted 2 | . . . . . . . . . 2 Combat Hostiles 2 | . . . . . . . . . 2 Parts Melted 3 | . . . . 2 . . . . 1 Heat Transferred 3175 | 74 148 740 407 481 . . . . 1325 Parts Sabotaged 6 | . . . . . . . . . 6 Parts Stolen . | . . . . . . . . . . Parts Stripped . | . . . . . . . . . . Power Chain Reactions 2 | . . . . . . . . . 2 Alert | -11 -10 -10 -8 -7 -6 -6 -6 -6 -6 ------- Run | Yrd Mat Sub Mat Fac Fac Ext Cet Arc Hub Peak Influence 2112 | 10 96 . 79 507 276 1171 815 517 2112 Initial 571 | . 6 . . . 247 58 571 326 180 Average 384 | 1 20 . 24 188 205 387 685 473 950 Maximum Alert Level 5 | . . . . 2 1 4 3 2 5 Low Security (%) 47 | 100 100 . 100 47 32 23 . . 17 Level 1 22 | . . . . 44 67 40 . 24 13 Level 2 11 | . . . . 7 . 26 66 75 4 Level 3 6 | . . . . . . 6 33 . 16 Level 4 9 | . . . . . . 3 . . 38 Level 5 2 | . . . . . . . . . 9 High Security . | . . . . . . . . . . Max Security . | . . . . . . . . . . Squads Dispatched 17 | . 1 . . 4 1 1 . . 10 Investigation 1 | . . . . . 1 . . . . Extermination 3 | . . . . 2 . . . . 1 Reinforcement 5 | . 1 . . 2 . . . . 2 Assault 7 | . . . . . . 1 . . 6 Garrison 1 | . . . . . . . . . 1 Intercept . | . . . . . . . . . . Searches Triggered . | . . . . . . . . . . Construction Impeded 2 | . . . . 1 . . . . 1 Haulers Reinforced . | . . . . . . . . . . Active Scanning Responses . | . . . . . . . . . . Cargo Convoy Interrupts . | . . . . . . . . . . Stealth | -11 -10 -10 -8 -7 -6 -6 -6 -6 -6 --------- Run | Yrd Mat Sub Mat Fac Fac Ext Cet Arc Hub Distress Signals 6 | . . . 2 . . 1 2 . 1 Communications Jammed . | . . . . . . . . . . Distress Signals . | . . . . . . . . . . Times Spotted 172 | . 7 6 9 28 4 36 9 4 69 Peak Tracking Total 21 | . 3 2 4 4 2 8 5 2 21 Tactical Retreats 9 | . 1 . . 3 . . . . 5 Traps | -11 -10 -10 -8 -7 -6 -6 -6 -6 -6 ------- Run | Yrd Mat Sub Mat Fac Fac Ext Cet Arc Hub Traps Triggered 5 | . . . 1 2 1 1 . . . Indirectly . | . . . . . . . . . . Trap Hack Attempts . | . . . . . . . . . . Triggered . | . . . . . . . . . . Disarmed . | . . . . . . . . . . Reprogrammed . | . . . . . . . . . . Reused . | . . . . . . . . . . Traps Extracted . | . . . . . . . . . . Installed . | . . . . . . . . . . Triggered 2 | . . 2 . . . . . . . Machines | -11 -10 -10 -8 -7 -6 -6 -6 -6 -6 ---------- Run | Yrd Mat Sub Mat Fac Fac Ext Cet Arc Hub Machines Disabled 51 | . . . . . . 5 1 . 45 Max in Single Turn 21 | . . . . . . 1 1 . 21 Garrison Access 3 | . . . 1 . . . . . 2 Network Hub 3 | . . . . . . . . . 3 Machines Repaired . | . . . . . . . . . . Machines Dismantled . | . . . . . . . . . . Machines Sabotaged . | . . . . . . . . . . Overloaded Fab Kills . | . . . . . . . . . . Hacking | -11 -10 -10 -8 -7 -6 -6 -6 -6 -6 --------- Run | Yrd Mat Sub Mat Fac Fac Ext Cet Arc Hub Machines Accessed 30 | . 3 . 7 2 1 10 1 . 6 Terminals 27 | . 3 . 6 1 1 10 1 . 5 Fabricators . | . . . . . . . . . . Repair Stations . | . . . . . . . . . . Recycling Units 1 | . . . . 1 . . . . . Scanalyzers . | . . . . . . . . . . Garrison Access 2 | . . . 1 . . . . . 1 Total Hacks 79 | . 13 . 24 3 2 21 2 . 14 Successful 38 | . 7 . 17 1 1 9 . . 3 Failed 41 | . 6 . 7 2 1 12 2 . 11 Catastrophic 7 | . 1 . 1 1 . 1 1 . 2 Database Lockouts . | . . . . . . . . . . Manual 56 | . 13 . 22 2 . 8 1 1 9 Terminals 75 | . 13 . 23 2 2 21 2 . 12 Fabricators . | . . . . . . . . . . Repair Stations . | . . . . . . . . . . Recycling Units 1 | . . . . 1 . . . . . Scanalyzers . | . . . . . . . . . . Garrison Access 3 | . . . 1 . . . . . 2 Terminal Hacks 12 | . 1 . 3 . 1 6 . . 1 Open Door 5 | . . . . . . 5 . . . Open DSF 1 | . . . . . 1 . . . . Branch Access Points 3 | . . . 1 . . 1 . . 1 Terminal Index 1 | . 1 . . . . . . . . Unreport Threat 2 | . . . 2 . . . . . . Fabricator Hacks . | . . . . . . . . . . Repair Station Hacks . | . . . . . . . . . . Recycling Unit Hacks . | . . . . . . . . . . Scanalyzer . | . . . . . . . . . . Garrison Access Hacks 1 | . . . 1 . . . . . . Seal Access 1 | . . . 1 . . . . . . Unauthorized Hacks 25 | . 6 . 13 1 . 3 . . 2 Terminals 25 | . 6 . 13 1 . 3 . . 2 Assimilate 2 | . 1 . . . . . . . 1 Botnet 14 | . 3 . 6 1 . 3 . . 1 Operators 1 | . . . 1 . . . . . . Skim 8 | . 2 . 6 . . . . . . Fabricators . | . . . . . . . . . . Repair Stations . | . . . . . . . . . . Recycling Units . | . . . . . . . . . . Scanalyzers . | . . . . . . . . . . Garrison Access . | . . . . . . . . . . Data Cores Recovered 1 | . . . . . . 1 . . . Used . | . . . . . . . . . . Hacking Detections 25 | . 3 . 6 2 1 6 1 . 6 Full Trace Events . | . . . . . . . . . . Feedback Events . | . . . . . . . . . . Feedback Blocked . | . . . . . . . . . . Robot Schematics Acquired . | . . . . . . . . . . Robots Built . | . . . . . . . . . . Authchips . | . . . . . . . . . . Time . | . . . . . . . . . . Total Robot Build Rating . | . . . . . . . . . . Part Schematics Acquired . | . . . . . . . . . . Parts Built . | . . . . . . . . . . Authchips . | . . . . . . . . . . Time . | . . . . . . . . . . Total Part Build Rating . | . . . . . . . . . . Parts Repaired . | . . . . . . . . . . Time . | . . . . . . . . . . Parts Recycled . | . . . . . . . . . . Recycled Matter . | . . . . . . . . . . Retrieved Matter . | . . . . . . . . . . Retrieved Components . | . . . . . . . . . . Parts Scanalyzed . | . . . . . . . . . . Part Schematics Acquired . | . . . . . . . . . . Parts Damaged . | . . . . . . . . . . Bothacking | -11 -10 -10 -8 -7 -6 -6 -6 -6 -6 ------------ Run | Yrd Mat Sub Mat Fac Fac Ext Cet Arc Hub Used RIF Installer . | . . . . . . . . . . Robots Hacked . | . . . . . . . . . . Non-combat . | . . . . . . . . . . Combat . | . . . . . . . . . . Robot Hacks Applied . | . . . . . . . . . . Relay Couplers Released . | . . . . . . . . . . Fabnet Peak Effective % . | . . . . . . . . . . Robots Rewired 6 | . . . . . . 6 . . . Allies Hacked . | . . . . . . . . . . Hacks Repelled . | . . . . . . . . . . Allies | -11 -10 -10 -8 -7 -6 -6 -6 -6 -6 -------- Run | Yrd Mat Sub Mat Fac Fac Ext Cet Arc Hub Total Allies 22 | . . . . 3 . 14 5 . . Largest Group 12 | . . . . 3 2 12 12 12 11 Highest-Rated Group 786 | . . . . 93 62 462 786 786 622 Highest-Rated Ally 159 | . . . . 31 31 159 159 159 96 Total Orders . | . . . . . . . . . . Ally Attacks 277 | . . . . 43 7 96 54 24 53 Total Damage 5307 | . . . . 335 84 1303 1200 825 1560 Kills 39 | . . . . 5 . 12 8 4 10 Allies Corrupted 4 | . . . . . . 1 . . 3 Allies Melted . | . . . . . . . . . . Intel | -11 -10 -10 -8 -7 -6 -6 -6 -6 -6 ------- Run | Yrd Mat Sub Mat Fac Fac Ext Cet Arc Hub Robot Analysis Total . | . . . . . . . . . . Derelict Logs Recovered . | . . . . . . . . . . Drone Launches . | . . . . . . . . . . Drone Recoveries . | . . . . . . . . . . Exploration | -11 -10 -10 -8 -7 -6 -6 -6 -6 -6 ------------- Run | Yrd Mat Sub Mat Fac Fac Ext Cet Arc Hub Turns Passed 7344 | 82 546 837 1262 1126 593 820 399 128 1551 Spaces Moved 3840 | 52 335 419 564 592 348 449 251 63 767 Core 114 | 2 . . . . . . . . 112 Treads 712 | 2 . 9 . . . . 55 63 583 Legs 2440 | . . 286 564 592 348 449 196 . 5 Wheels 574 | 48 335 124 . . . . . . 67 Hover . | . . . . . . . . . . Flight . | . . . . . . . . . . Fastest Speed 50 | 50 100 100 190 120 120 120 120 160 50 Average Speed 141 | 100 100 162 190 140 120 120 128 160 142 Slowest Speed 240 | 160 100 240 190 190 120 120 160 160 190 Overloaded Moves . | . . . . . . . . . . Propulsion Burnouts . | . . . . . . . . . . Robots Hopped . | . . . . . . . . . . Cave-ins Triggered . | . . . . . . . . . . Exploration Rate (%) 39 | 4 33 24 30 19 9 59 69 76 71 Regions Visited 9 Branch Regions 5 Pre-discovered Areas 5 | . . . 5 . . . . . . Known Exits Taken 3 | . . . 1 1 . 1 . . . Unknown Exits Taken 6 | 1 1 1 . . 1 . 1 1 . Scrap Searched . | . . . . . . . . . . Spaces Dug 188 | . . 6 . 18 . 162 . . 2 Terrain Destroyed 1180 | . . 19 10 116 . 222 73 . 740 Melee . | . . . . . . . . . . Projectile 43 | . . 19 10 2 . . . . 12 AOE 1137 | . . . . 114 . 222 73 . 728 Terrain Rammed . | . . . . . . . . . . Walls Destroyed . | . . . . . . . . . . Machines Disabled . | . . . . . . . . . . Actions | -11 -10 -10 -8 -7 -6 -6 -6 -6 -6 --------- Run | Yrd Mat Sub Mat Fac Fac Ext Cet Arc Hub Total 5294 | 70 526 513 719 827 514 643 308 88 1086 Wait 929 | 4 180 23 114 141 135 113 35 24 160 Move 3829 | 51 334 418 563 591 347 447 249 62 767 Hop . | . . . . . . . . . . Pick Up 52 | 4 1 7 9 12 6 4 . . 9 Fast Attach 54 | 7 . 6 6 10 . 2 4 1 18 Attach 24 | . . 1 3 3 2 1 1 . 13 Detach 9 | . . . 1 2 . . . . 6 Swap 52 | . 1 2 1 17 6 8 8 . 9 Drop 79 | . . 11 5 21 11 9 5 . 17 Fire 227 | 4 10 41 16 29 7 38 6 1 75 Melee . | . . . . . . . . . . Ram 12 | . . . . . . . . . 12 Kick . | . . . . . . . . . . Crush . | . . . . . . . . . . Escape Stasis 3 | . . . . . . 3 . . . Rewire 18 | . . . . . . 18 . . . Trap . | . . . . . . . . . . Miscellaneous 6 | . . 4 1 1 . . . . . Route ------- -11/Scrapyard -10/Materials (discovered 2 exits: [*Mat] / [*Sub]) -10/Subcaves -8/Materials (discovered 3 exits: *Fac x3) -7/Factory (discovered 3 exits: *Fac x2 / Low) -6/Factory (discovered 3 exits: *Fac / [*Low] / *Ext) -6/Extension (discovered 2 exits: *Fac / *Cet) -6/Cetus (discovered 2 exits: *Fac / *Arc) -6/Archives (discovered 2 exits: *Fac / *Hub) -6/Hub_04(d) (discovered 3 exits: *Fac x3) History --------- Turn | Location | Event 36 | -11/Scrapyard | Discovered new exit (range 16) 83 | -11/Scrapyard | Entered Materials 183 | -10/Materials | Discovered new exit (range 16) 309 | -10/Materials | Build established: Mutant 612 | -10/Materials | Discovered new exit (range 4) 629 | -10/Materials | Entered Subcaves 630 | -10/Subcaves | Shifting Twisted Machinery released Riot Gun 649 | -10/Subcaves | Shifting Twisted Machinery released Battle Rifle 752 | -10/Subcaves | Ambushed by Subdwellers from Twisted Machinery 808 | -10/Subcaves | Lost 3 parts (1p1n1w) 1048 | -10/Subcaves | A swath of the cavern ceiling suddenly collapsed 1361 | -10/Subcaves | Discovered new exit (range 12) 1430 | -10/Subcaves | Build established: Scavenger-Mutant 1466 | -10/Subcaves | Entered Materials 1466 | -8/Materials | Evolved 4 slots: Propulsion x1, Utility x2, Weapon x1 2098 | -8/Materials | Build established: Scavenger-Tank 2240 | -8/Materials | Learned Storage emergency access door positions 2305 | -8/Materials | Learned location of Lower Caves (-6) 2309 | -8/Materials | Learned location of Zion (-6) 2311 | -8/Materials | Identified exit to Factory 2312 | -8/Materials | Learned Storage stockpile data 2318 | -8/Materials | Learned location of 2 exits from Factory 2332 | -8/Materials | Discovered exit to Factory (range 14) 2335 | -8/Materials | Learned 4 Lower Caves zone layouts 2728 | -8/Materials | Entered Factory 2728 | -7/Factory | Evolved 2 slots: Propulsion x1, Utility x1 2729 | -7/Factory | Identified exit to Factory 2730 | -7/Factory | Identified exit to Lower Caves 2973 | -7/Factory | Found Prototype Launcher 2973 | -7/Factory | Identified Rocket Array 2989 | -7/Factory | Found Rocket Array 2992 | -7/Factory | Found Rocket Array 3051 | -7/Factory | Build established: Scavenger-Gunner 3717 | -7/Factory | Allied Derelicts emerged from ambush trap array 3838 | -7/Factory | Build established: Gunner 3854 | -7/Factory | Entered another Factory area 3854 | -6/Factory | Accompanied by 2 allies 3854 | -6/Factory | Evolved 2 slots: Utility x1, Weapon x1 3934 | -6/Factory | Identified exit to DSF 3978 | -6/Factory | Discovered new exit (range 3) 4139 | -6/Factory | Discovered new exit (range 16) 4408 | -6/Factory | Build established: Scavenger-Gunner 4429 | -6/Factory | Discovered new exit (range 16) 4447 | -6/Factory | Entered Extension 4461 | -6/Extension | Allied Derelicts emerged from ambush trap array 4555 | -6/Extension | Rescued a captive Derelict 4621 | -6/Extension | Rescued a captive Derelict 4625 | -6/Extension | Rescued a captive Derelict 4791 | -6/Extension | Rescued A7 5071 | -6/Extension | Rescued a captive Derelict 5100 | -6/Extension | Identified exit to Cetus 5104 | -6/Extension | Rescued a captive Derelict 5147 | -6/Extension | First assault squad dispatched 5195 | -6/Extension | Discovered new exit (range 10) 5209 | -6/Extension | Disrupted transfer network 5238 | -6/Extension | Build established: Commander-Gunner 5240 | -6/Extension | Destroyed 8 combat bots 5267 | -6/Extension | Entered Cetus 5267 | -6/Cetus | Accompanied by 12 allies (A7) 5272 | -6/Cetus | Acquired a Cetus Manufacturing Module code from A7 5291 | -6/Cetus | Spotted Cetus Guard 5291 | -6/Cetus | Spotted Cetus Guard 5293 | -6/Cetus | Spotted Cetus Guard 5293 | -6/Cetus | Spotted Cetus Guard 5303 | -6/Cetus | Allies destroyed Cetus Guard 5308 | -6/Cetus | Allies destroyed Cetus Guard 5311 | -6/Cetus | Allies destroyed Cetus Guard 5318 | -6/Cetus | Allies destroyed Cetus Guard 5343 | -6/Cetus | Lost 5 allies 5404 | -6/Cetus | Started Cetus Manufacturing Module 5429 | -6/Cetus | Manufactured an Enhanced Grunt 5454 | -6/Cetus | Manufactured an Enhanced Grunt 5470 | -6/Cetus | Discovered new exit (range 16) 5479 | -6/Cetus | Manufactured an Enhanced Grunt 5504 | -6/Cetus | Manufactured an Enhanced Grunt 5519 | -6/Cetus | Spotted Cetus Guard 5523 | -6/Cetus | Spotted Cetus Guard 5524 | -6/Cetus | Spotted Cetus Guard 5524 | -6/Cetus | Spotted Cetus Guard 5529 | -6/Cetus | Manufactured an Enhanced Grunt 5533 | -6/Cetus | Allies destroyed Cetus Guard 5533 | -6/Cetus | Allies destroyed Cetus Guard 5534 | -6/Cetus | Destroyed Cetus Guard 5538 | -6/Cetus | Allies destroyed Cetus Guard 5542 | -6/Cetus | Discovered new exit (range 16) 5549 | -6/Cetus | Met Revision 17 5597 | -6/Cetus | Build established: Scavenger-Gunner 5666 | -6/Cetus | Entered Archives 5666 | -6/Archives | Accompanied by 12 allies (A7) 5714 | -6/Archives | Unable to access archive contents 5722 | -6/Archives | Unable to access archive contents 5738 | -6/Archives | Unable to access archive contents 5744 | -6/Archives | Discovered new exit (range 14) 5763 | -6/Archives | Discovered new exit (range 13) 5794 | -6/Archives | Entered Hub_04(d) 5794 | -6/Hub_04(d) | Accompanied by 11 allies 6117 | -6/Hub_04(d) | Build established: Scavenger-Skirmisher 6193 | -6/Hub_04(d) | Lost 3 allies 6222 | -6/Hub_04(d) | Garrison activated, responded to threat 6256 | -6/Hub_04(d) | Found Prototype Device 6256 | -6/Hub_04(d) | Identified Exp. Thermal Shield 6348 | -6/Hub_04(d) | Network Hub disabled 6402 | -6/Hub_04(d) | Spotted Lightning 6402 | -6/Hub_04(d) | Spotted Lightning 6402 | -6/Hub_04(d) | Spotted Lightning 6415 | -6/Hub_04(d) | Destroyed Lightning 6416 | -6/Hub_04(d) | Allies destroyed Lightning 6426 | -6/Hub_04(d) | System corruption reached 10% 6457 | -6/Hub_04(d) | Allies destroyed Lightning 6610 | -6/Hub_04(d) | Network Hub disabled 6666 | -6/Hub_04(d) | Discovered new exit (range 14) 6762 | -6/Hub_04(d) | Identified exit to Factory 6795 | -6/Hub_04(d) | Spotted B-75 Beast 6851 | -6/Hub_04(d) | Destroyed B-75 Beast 6869 | -6/Hub_04(d) | Spotted Lightning 6872 | -6/Hub_04(d) | Destroyed 7 combat bots 6873 | -6/Hub_04(d) | Spotted Lightning 6876 | -6/Hub_04(d) | Spotted Lightning 6896 | -6/Hub_04(d) | Destroyed Lightning 6922 | -6/Hub_04(d) | System corruption reached 30% 6934 | -6/Hub_04(d) | Destroyed Lightning 6947 | -6/Hub_04(d) | Destroyed Lightning 6952 | -6/Hub_04(d) | Lost 5 parts (1n2u2w) 7194 | -6/Hub_04(d) | First assault squad dispatched 7203 | -6/Hub_04(d) | Network Hub disabled 7272 | -6/Hub_04(d) | Released all parts (4) 7276 | -6/Hub_04(d) | Core integrity fell below 50% 7287 | -6/Hub_04(d) | Discovered exit to Factory (range 10) 7302 | -6/Hub_04(d) | Lost 4 parts (1p2u1w) 7310 | -6/Hub_04(d) | Core integrity fell below 20% 7322 | -6/Hub_04(d) | Discovered exit to Factory (range 8) 7345 | -6/Hub_04(d) | Destroyed by Y-54 Guardian with Gatling Laser Last Messages --------------- 07288_ E-15 Imp destroyed. 07290_ System corrupted: Matter fused (-8). 07298_ Critical hit (Burn: +37). 07305_ System corrupted: Energy discharge (-36). 07320_ FKO|1XZQZ5N=MV5HCI 07326_ Backup Mainframe disabled. 07327_ O-16 Technician sends out distress signal. 07327_ O-16 Technician: "IFF HANDSHAKE FAILED. SECURING TERMINAL." 07328_ K-01 Serf destroyed. 07329_ The unstable cave ceiling collapses. 07329_ Slug penetrates Wall. 07329_ Hvy. Missile Launcher destroyed. 07329_ ALERT: Construction progress impeded, dispatching reinforcements to local area. 07330_ Slug penetrates Wall. 07335_ VAF2 OT78#VLQ5L7H9R8YDLJM67CEQAE> 07335_ Slug penetrates Wall. 07339_ The unstable cave ceiling collapses. Map ----- +----------------------------------------------------+ | | | | | | | | | | | | | | | | | | | | | | | | | ??????????########?????????????????? | | ?????????#! #????????????????? | | ?????????? """ #????????????????? | | ?????????? #????????????????? | | ??????????? ?????#########???? | | ??????????? !!! ????? ! #???? | | ???????????? !! ??????# #???? | | ???????????? !! ??????# " #???? | | ????????????? ???????# " #???? | | ????????????? ???????# ! " #???? | | #+############+######### #???? | | ! #???? | | ########+#####+????? | | #??# @!! Y# | | ######### ##??# " !! =#? | | ???### % ##### " !! #? | | #### # = # # " #? | | " =# """"T"""" #? | | # * # """"""""""" #? | | * $% ###############?? | | "# ##???????????????? | | " ## #????????????????? | | "" #?? #????????????????? | | "" #?? #????????????????? | | """" ##########???#????????????????? | | #??????? ?????????????????????? | | """" #???????T?????????????????????? | | """" #??????? ?????????????????????? | | """" #??????? ?????????????????????? | | """" #????###+#????????????????????? | | #????# ?????????????????????? | | ###/####### ?????????????????????? | | # # #?????????????????????? | | # # #?????????????????????? | | # # #?????????????????????? | | # / #?????????????????????? | | # # #?????????????????????? | | ? # #?????????????????????? | +----------------------------------------------------+ Best States ------------- Heat Dissipation 70 Energy Generation 19 Energy Capacity 315 Matter Stores 300 Matter Capacity 300 Sight Range 16 Robot Scan Range 16 Terrain Scan Density 10 Armor Coverage 1600 Resistance: TH 10 Propulsion Shielding 66 Phase Shifting 5 Evasion (%) 65 Targeting Accuracy 8 Recoil Reduction 4 Offensive Hacking 10 Item Schematics ----------------- None Robot Schematics ------------------ None Fabricated ------------ Nothing Alien Tech Used ----------------- None Achievements -------------- None Challenges ------------ None Game ------ Seed FusionMetafieldClaw Manual? 0 Play Time 01:09:44 Cumulative 234.2 hours Start 2024.10.18 @ 19:45:27 End 2024.10.18 @ 20:55:45 Sessions 1 Manual Loads 0 Difficulty Rogue Special Mode None Game No. 297 Rogue 253 Adventurer 4 Explorer 40 Win Type - Total 10 Types 8/1/0/1/0/0/0/0/0 Lore% 45 Gallery% 71 Achievement% 62 Wizard Run 0 Options --------- Layout 0 ASCII 0 Keyboard 0 Movement Mouse Keybinds 0 Fullscreen 2 Font 24/Smallcaps Map View 76x50 Zoom Use 0% Tactical HUD 1 Map Filters NONE Filters NONE Steam 1 RUN: 5846dd7f-e21f-48e7-891f-4535b2bf2b5a